fUSD/lending_fUSD_20251221
["ID","MTS","AMOUNT","RATE_DAILY","PERIOD"]
[399428171,1766344238495,-2342.88,0.00012192,2]
[399428172,1766344238504,-324.07,0.00012309,2]
[399428173,1766344238514,-11813.4,0.00012396,2]
[399428174,1766344238524,-1000.0,0.000124,2]
[399428175,1766344238533,-757.15342507,0.00012461,2]
[399428176,1766344238543,-2342.88,0.00012466,2]
[399428177,1766344238552,-151.0,0.00012468,2]
[399428179,1766344238562,-388693.7823278,0.00012471,2]
[399428181,1766344238571,-243.1079977,0.00012536,2]
[399428183,1766344238581,-200.0,0.00012692,2]
[399428185,1766344238591,-207.4,0.00012692,2]
[399428187,1766344238600,-215.0738,0.00012692,2]
[399428189,1766344238610,-223.0315306,0.00012692,2]
[399428191,1766344238619,-231.28369723,0.00012692,2]
[399428193,1766344238629,-239.84119403,0.00012692,2]
[399428195,1766344238638,-248.71531821,0.00012692,2]
[399428197,1766344238648,-257.91778498,0.00012692,2]
[399428199,1766344238658,-267.46074303,0.00012692,2]
[399428201,1766344238668,-151.0,0.00012692,2]
[399428203,1766344238677,-156.587,0.00012692,2]
[399428204,1766344238686,-162.380719,0.00012692,2]
[399428206,1766344238695,-153.50930745,0.00012692,2]
[399428207,1766344238705,-300.0,0.00012692,2]
[399428209,1766344238714,-151.0,0.00012692,2]
[399428210,1766344238725,-2342.88,0.0001274,2]
[399428211,1766344238735,-3292.0,0.00012747,2]
[399428212,1766344238744,-255.0,0.00012747,2]
[399428213,1766344238754,-823.0,0.00012747,2]
[399428214,1766344238763,-23351.15640606,0.00012832,2]
[399428215,1766344238773,-31760.83904941,0.00012832,2]
[399428216,1766344238782,-324.07,0.00012869,2]
[399428217,1766344238792,-2342.88,0.00013014,2]
[399428218,1766344238803,-2342.88,0.00013288,2]
[399428219,1766344238812,-736.0,0.00013309,2]
[399428220,1766344238822,-324.07,0.00013428,2]
[399428221,1766344238832,-151.0,0.00013465,2]
[399428222,1766344238842,-2342.88,0.00013562,2]
[399428223,1766344238862,-500.0,0.00013643,2]
[399428224,1766344238873,-500.0,0.00013643,2]
[399428225,1766344238883,-500.0,0.00013643,2]
[399428226,1766344238893,-535.22474582,0.00013643,2]
[399428227,1766344238903,-500.0,0.00013643,2]
[399428228,1766344238918,-500.0,0.00013643,2]
[399428229,1766344238928,-500.0,0.00013643,2]
[399428230,1766344238938,-500.0,0.00013643,2]
[399428231,1766344238948,-550.17823057,0.00013643,2]
[399428232,1766344238959,-501.40165484,0.00013643,2]
[399428233,1766344238968,-500.0,0.00013643,2]
[399428234,1766344238979,-500.0,0.00013643,2]
[399428235,1766344238990,-500.0,0.00013643,2]
[399428236,1766344239000,-500.0,0.00013643,2]
[399428237,1766344239010,-500.0,0.00013643,2]
[399428238,1766344239020,-500.0,0.00013643,2]
[399428239,1766344239030,-500.0,0.00013643,2]
[399428240,1766344239039,-500.0,0.00013643,2]
[399428241,1766344239050,-500.0,0.00013643,2]
[399428242,1766344239059,-500.0,0.00013643,2]
[399428243,1766344239069,-484.06013596,0.00013643,2]
[399428244,1766344239079,-500.0,0.00013643,2]
[399428245,1766344239088,-453.53849539,0.00013643,2]
[399428246,1766344239098,-500.0,0.00013643,2]
[399428247,1766344239107,-500.0,0.00013643,2]
[399428248,1766344239118,-235.55154497,0.00013643,2]
[399428249,1766344239128,-500.0,0.00013643,2]
[399428250,1766344239138,-500.0,0.00013643,2]
[399428251,1766344239148,-500.0,0.00013643,2]
[399428252,1766344239158,-500.0,0.00013643,2]
[399428253,1766344239168,-500.0,0.00013643,2]
[399428254,1766344239177,-500.0,0.00013643,2]
[399428255,1766344239188,-23351.15640606,0.00013646,2]
[399428256,1766344239198,-31760.83904941,0.00013646,2]
[399428257,1766344239207,-500.0,0.00013698,2]
[399428258,1766344239217,-500.0,0.00013698,2]
[399428259,1766344239233,-500.0,0.00013698,2]
[399428260,1766344239243,-505.3255501,0.00013698,2]
[399428261,1766344239254,-500.0,0.00013698,2]
[399428262,1766344239265,-500.0,0.00013698,2]
[399428263,1766344239275,-500.0,0.00013698,2]
[399428264,1766344239286,-500.0,0.00013698,2]
[399428265,1766344239297,-500.0,0.00013698,2]
[399428266,1766344239307,-500.0,0.00013698,2]
[399428267,1766344239317,-500.0,0.00013698,2]
[399428268,1766344239327,-500.0,0.00013698,2]
[399428269,1766344239338,-500.0,0.00013698,2]
[399428270,1766344239348,-500.0,0.00013698,2]
[399428271,1766344239357,-500.0,0.00013698,2]
[399428272,1766344239368,-500.0,0.00013698,2]
[399428273,1766344239378,-500.0,0.00013698,2]
[399428274,1766344239387,-500.0,0.00013698,2]
[399428275,1766344239397,-500.0,0.00013698,2]
[399428276,1766344239407,-500.0,0.00013698,2]
[399428277,1766344239417,-500.0,0.00013698,2]
[399428278,1766344239427,-500.0,0.00013698,2]
[399428279,1766344239437,-500.0,0.00013698,2]
[399428280,1766344239447,-500.0,0.00013698,2]
[399428281,1766344239456,-500.0,0.00013698,2]
[399428282,1766344239466,-500.0,0.00013698,2]
[399428283,1766344239476,-500.0,0.00013698,2]
[399428284,1766344239486,-500.0,0.00013698,2]
[399428285,1766344239496,-500.0,0.00013698,2]
[399428286,1766344239505,-500.0,0.00013698,2]
[399428287,1766344239515,-500.0,0.00013698,2]
[399428288,1766344239525,-500.0,0.00013698,2]
[399428289,1766344239535,-500.0,0.00013698,2]
[399428290,1766344239546,-500.0,0.00013698,2]
[399428291,1766344239555,-500.0,0.00013698,2]
[399428292,1766344239565,-500.0,0.00013698,2]
[399428293,1766344239574,-500.0,0.00013698,2]
[399428294,1766344239586,-500.0,0.00013698,2]
[399428295,1766344239597,-500.0,0.00013698,2]
[399428296,1766344239606,-500.0,0.00013698,2]
[399428297,1766344239617,-500.0,0.00013698,2]
[399428298,1766344239628,-500.0,0.00013698,2]
[399428299,1766344239639,-500.0,0.00013698,2]
[399428300,1766344239649,-500.0,0.00013698,2]
[399428301,1766344239660,-500.0,0.00013698,2]
[399428302,1766344239670,-500.0,0.00013698,2]
[399428303,1766344239681,-500.0,0.00013698,2]
[399428304,1766344239692,-166.66,0.00013699,2]
[399428305,1766344239703,-13733.1,0.00013699,2]
[399428306,1766344239713,-200.0,0.00013699,2]
[399428307,1766344239723,-196.43,0.00013699,2]
[399428308,1766344239733,-151.0,0.00013699,2]
[399428309,1766344239743,-151.0,0.00013699,2]
[399428310,1766344239753,-293.018097,0.00013699,2]
[399428311,1766344239763,-293.018097,0.00013699,2]
[399428312,1766344239775,-975.876086,0.00013699,2]
[399428313,1766344239785,-293.018097,0.00013699,2]
[399428314,1766344239796,-975.876086,0.00013699,2]
[399428315,1766344239806,-293.018097,0.00013699,2]
[399428316,1766344239816,-975.876086,0.00013699,2]
[399428317,1766344239825,-975.876086,0.00013699,2]
[399428318,1766344239835,-151.0,0.00013699,2]
[399428319,1766344239845,-151.0,0.00013699,2]
[399428320,1766344239855,-153.350733,0.00013699,2]
[399428321,1766344239865,-500.0,0.00013699,2]
[399428322,1766344239875,-500.0,0.00013699,2]
[399428323,1766344239885,-500.0,0.00013699,2]
[399428324,1766344239895,-500.0,0.00013699,2]
[399428325,1766344239908,-500.0,0.00013699,2]
[399428326,1766344239920,-500.0,0.00013699,2]
[399428327,1766344239931,-500.0,0.00013699,2]
[399428328,1766344239940,-500.0,0.00013699,2]
[399428329,1766344239951,-500.0,0.00013699,2]
[399428330,1766344239961,-500.0,0.00013699,2]
[399428331,1766344239971,-500.0,0.00013699,2]
[399428332,1766344239982,-500.0,0.00013699,2]
[399428333,1766344239993,-500.0,0.00013699,2]
[399428334,1766344240004,-500.0,0.00013699,2]
[399428335,1766344240015,-500.0,0.00013699,2]
[399428336,1766344240025,-500.0,0.00013699,2]
[399428337,1766344240035,-500.0,0.00013699,2]
[399428338,1766344240046,-367.35266655,0.00013699,2]
[399428339,1766344240056,-500.0,0.00013699,2]
[399428340,1766344240067,-500.0,0.00013699,2]
[399428341,1766344240078,-500.0,0.00013699,2]
[399428342,1766344240088,-500.0,0.00013699,2]
[399428343,1766344240098,-500.0,0.00013699,2]
[399428344,1766344240108,-500.0,0.00013699,2]
[399428345,1766344240118,-500.0,0.00013699,2]
[399428346,1766344240128,-500.0,0.00013699,2]
[399428347,1766344240138,-500.0,0.00013699,2]
[399428348,1766344240148,-500.0,0.00013699,2]
[399428349,1766344240158,-500.0,0.00013699,2]
[399428350,1766344240168,-500.0,0.00013699,2]
[399428351,1766344240179,-500.0,0.00013699,2]
[399428352,1766344240188,-500.0,0.00013699,2]
[399428353,1766344240198,-500.0,0.00013699,2]
[399428354,1766344240211,-500.0,0.00013699,2]
[399428355,1766344240221,-500.0,0.00013699,2]
[399428356,1766344240233,-500.0,0.00013699,2]
[399428357,1766344240243,-500.0,0.00013699,2]
[399428358,1766344240254,-500.0,0.00013699,2]
[399428359,1766344240265,-500.0,0.00013699,2]
[399428360,1766344240275,-500.0,0.00013699,2]
[399428361,1766344240286,-450.0,0.00013699,2]
[399428363,1766344240296,-500.0,0.00013699,2]
[399428365,1766344240307,-500.0,0.00013699,2]
[399428366,1766344240317,-500.0,0.00013699,2]
[399428367,1766344240327,-2072.78,0.000137,2]
[399428368,1766344240337,-2072.78,0.000137,2]
[399428369,1766344240347,-2072.78,0.000137,2]
[399428370,1766344240356,-2072.78,0.000137,2]
[399428371,1766344240366,-2072.78,0.000137,2]
[399428372,1766344240375,-151.0,0.00013792,2]
[399428373,1766344240385,-151.0,0.00013792,2]
[399428374,1766344240395,-1000.0,0.000138,2]
[399428375,1766344240405,-151.0,0.00013802,2]
[399428376,1766344240415,-500.0,0.00013804,2]
[399428377,1766344240424,-500.0,0.00013804,2]
[399428378,1766344240434,-388693.7823278,0.00013805,2]
[399428379,1766344240443,-151.0,0.00013805,2]
[399428380,1766344240455,-166.66,0.00013836,2]
[399428381,1766344240465,-2342.88,0.00013836,2]
[399428382,1766344240475,-151.0,0.00013841,2]
[399428383,1766344240485,-151.0,0.00013908,2]
[399428384,1766344240495,-166.66,0.00013973,2]
[399428385,1766344240505,-324.07,0.00013988,2]
[399428386,1766344240515,-1173.6239593,0.00014017,2]
[399428387,1766344240524,-151.0,0.00014019,2]
[399428388,1766344240534,-4609.0,0.00014022,2]
[399428389,1766344240544,-812.0,0.00014022,2]
[399428390,1766344240554,-277.35679052,0.00014061,2]
[399428391,1766344240563,-311.1,0.00014061,2]
[399428392,1766344240573,-151.0,0.00014061,2]
[399428393,1766344240582,-166.66,0.0001411,2]
[399428394,1766344240592,-2342.88,0.0001411,2]
[399428395,1766344240602,-1000.0,0.00014191,2]
[399428396,1766344240612,-1000.0,0.00014191,2]
[399428397,1766344240622,-1000.0,0.00014191,2]
[399428398,1766344240631,-1000.0,0.00014191,2]
[399428399,1766344240640,-638.30499273,0.00014191,2]
[399428400,1766344240650,-1000.0,0.00014191,2]
[399428401,1766344240660,-1000.0,0.00014191,2]
[399428402,1766344240669,-1000.0,0.00014191,2]
[399428403,1766344240678,-1000.0,0.00014191,2]
[399428404,1766344240690,-1000.0,0.00014191,2]
[399428405,1766344240700,-936.70587254,0.00014191,2]
[399428406,1766344240710,-1000.0,0.00014191,2]
[399428407,1766344240720,-1000.0,0.00014191,2]
[399428408,1766344240730,-1000.0,0.00014191,2]
[399428409,1766344240741,-1000.0,0.00014191,2]
[399428410,1766344240752,-1000.0,0.00014191,2]
[399428411,1766344240762,-1000.0,0.00014191,2]
[399428412,1766344240772,-866.15226393,0.00014191,2]
[399428413,1766344240782,-1000.0,0.00014191,2]
[399428414,1766344240791,-500.0,0.00014191,2]
[399428415,1766344240800,-1000.0,0.00014191,2]
[399428416,1766344240810,-1000.0,0.00014191,2]
[399428417,1766344240820,-1000.0,0.00014191,2]
[399428418,1766344240830,-1144.26340267,0.00014191,2]
[399428419,1766344240839,-1000.0,0.00014191,2]
[399428420,1766344240849,-1000.0,0.00014191,2]
[399428421,1766344240859,-166.66,0.00014247,2]
[399428422,1766344240868,-166.66,0.00014384,2]
[399428423,1766344240879,-2342.88,0.00014384,2]
[399428424,1766344240888,-7923.0,0.00014455,2]
[399428425,1766344240897,-23351.15640606,0.00014459,2]
[399428426,1766344240908,-31760.83904941,0.00014459,2]
[399428427,1766344240919,-10000.0,0.0001451,2]
[399428428,1766344240929,-324.07,0.00014547,2]
[399428429,1766344240938,-1252.0,0.00014639,2]
[399428431,1766344240947,-500.0,0.00014658,2]
[399428432,1766344240959,-2342.88,0.00014658,2]
[399428433,1766344240968,-1500.0,0.00014739,2]
[399428434,1766344240978,-1158.38653664,0.00014739,2]
[399428435,1766344240987,-500.84654228,0.00014739,2]
[399428436,1766344240996,-597.40388542,0.00014739,2]
[399428437,1766344241006,-1500.0,0.00014739,2]
[399428438,1766344241015,-1500.0,0.00014739,2]
[399428439,1766344241024,-1500.0,0.00014739,2]
[399428440,1766344241034,-158.72296276,0.00014739,2]
[399428441,1766344241044,-1500.0,0.00014739,2]
[399428442,1766344241053,-1500.0,0.00014739,2]
[399428443,1766344241063,-1500.0,0.00014739,2]
[399428444,1766344241073,-958.37108423,0.00014739,2]
[399428445,1766344241083,-1500.0,0.00014739,2]
[399428446,1766344241092,-1500.0,0.00014739,2]
[399428447,1766344241102,-1503.75804982,0.00014739,2]
[399428448,1766344241111,-1500.0,0.00014739,2]
[399428449,1766344241121,-1500.0,0.00014739,2]
[399428450,1766344241130,-1500.0,0.00014739,2]
[399428451,1766344241140,-1500.0,0.00014739,2]
[399428452,1766344241150,-980.21424336,0.00014739,2]
[399428453,1766344241159,-1500.0,0.00014739,2]
[399428454,1766344241170,-2342.88,0.00014932,2]
[399428455,1766344241180,-151.0,0.00015068,2]
[399428456,1766344241190,-324.07,0.00015107,2]
[399428457,1766344241202,-500.0,0.00015118,2]
[399428458,1766344241212,-1000.0,0.000152,2]
[399428459,1766344241222,-2342.95190316,0.00015205,2]
[399428460,1766344241232,-23351.15640606,0.00015273,2]
[399428461,1766344241242,-31760.83904941,0.00015273,2]
[399428462,1766344241252,-151.0,0.00015273,2]
[399428463,1766344241262,-2000.0,0.00015287,2]
[399428464,1766344241272,-2000.0,0.00015287,2]
[399428465,1766344241282,-2000.0,0.00015287,2]
[399428466,1766344241292,-1500.98434959,0.00015287,2]
[399428467,1766344241301,-436.03619538,0.00015287,2]
[399428468,1766344241310,-2000.0,0.00015287,2]
[399428469,1766344241319,-1071.82272799,0.00015287,2]
[399428470,1766344241328,-2000.0,0.00015287,2]
[399428471,1766344241338,-629.20788422,0.00015287,2]
[399428472,1766344241349,-2000.0,0.00015287,2]
[399428473,1766344241358,-711.67995912,0.00015287,2]
[399428474,1766344241368,-2000.0,0.00015287,2]
[399428475,1766344241378,-1004.443568,0.00015287,2]
[399428476,1766344241387,-2000.0,0.00015287,2]
[399428477,1766344241397,-6453.0,0.00015424,2]
[399428478,1766344241407,-287.61899177,0.0001543,2]
[399428479,1766344241417,-322.6107,0.0001543,2]
[399428480,1766344241426,-151.0,0.00015832,2]
[399428481,1766344241436,-2500.0,0.00015835,2]
[399428482,1766344241446,-2500.0,0.00015835,2]
[399428483,1766344241457,-2000.0,0.00015835,2]
[399428484,1766344241466,-2500.0,0.00015835,2]
[399428485,1766344241476,-2500.0,0.00015835,2]
[399428486,1766344241487,-2087.77987847,0.00015835,2]
[399428487,1766344241497,-2124.62923411,0.00015835,2]
[399428488,1766344241506,-2449.44717494,0.00015835,2]
[399428489,1766344241516,-151.0,0.00015835,2]
[399428490,1766344241528,-151.0,0.00015835,2]
[399428491,1766344241538,-157.119013,0.00015835,2]
[399428492,1766344241548,-293.018097,0.00015835,2]
[399428493,1766344241557,-293.018097,0.00015835,2]
[399428494,1766344241567,-975.876086,0.00015835,2]
[399428495,1766344241576,-293.018097,0.00015835,2]
[399428496,1766344241586,-975.876086,0.00015835,2]
[399428497,1766344241596,-293.018097,0.00015835,2]
[399428498,1766344241605,-975.876086,0.00015835,2]
[399428499,1766344241614,-975.876086,0.00015835,2]
[399428500,1766344241624,-151.0,0.00015835,2]
[399428501,1766344241633,-151.0,0.00015835,2]
[399428502,1766344241642,-198.9491487,0.0001587,2]
[399428503,1766344241652,-23351.15640606,0.00016086,2]
[399428504,1766344241661,-31760.83904941,0.00016086,2]
[399428505,1766344241670,-2129.0,0.00016108,2]
[399428506,1766344241679,-397.16543724,0.00016258,2]
[399428507,1766344241690,-1101.62355977,0.00016337,5]
[399428508,1766344241700,-179.77,0.00016358,2]
[399428509,1766344241710,-3000.0,0.00016383,2]
[399428510,1766344241719,-2351.34245587,0.00016383,2]
[399428511,1766344241731,-3000.0,0.00016383,2]
[399428512,1766344241740,-3000.0,0.00016383,2]
[399428513,1766344241749,-256.42,0.00016413,2]
[399428514,1766344241759,-500.0,0.00016437,2]
[399428515,1766344241769,-500.0,0.00016437,2]
[399428516,1766344242016,-151.0,0.00016438,2]
[399428517,1766344242063,-588.84657337,0.00016438,2]
[399428518,1766344242075,-588.84657337,0.00016438,2]
[399428519,1766344242084,-588.84657337,0.00016438,2]
[399428520,1766344242094,-588.84657337,0.00016438,2]
[399428521,1766344242104,-588.84657337,0.00016438,2]
[399428522,1766344242114,-588.84657337,0.00016438,2]
[399428523,1766344242125,-588.84657337,0.00016438,2]
[399428524,1766344242135,-588.84657337,0.00016438,2]
[399428525,1766344242146,-588.84657337,0.00016438,2]
[399428526,1766344242158,-588.84657337,0.00016438,2]
[399428527,1766344242168,-588.84657337,0.00016438,2]
[399428528,1766344242177,-588.84657337,0.00016438,2]
[399428529,1766344242187,-588.84657337,0.00016438,2]
[399428530,1766344242197,-588.84657337,0.00016438,2]
[399428531,1766344242207,-588.84657337,0.00016438,2]
[399428532,1766344242217,-588.84657337,0.00016438,2]
[399428533,1766344242227,-588.84657337,0.00016438,2]
[399428534,1766344242236,-588.84657337,0.00016438,2]
[399428535,1766344242246,-588.84657337,0.00016438,2]
[399428536,1766344242257,-588.84657337,0.00016438,2]
[399428537,1766344242266,-588.84657337,0.00016438,2]
[399428538,1766344242276,-588.84657337,0.00016438,2]
[399428539,1766344242285,-588.84657337,0.00016438,2]
[399428540,1766344242295,-588.84657337,0.00016438,2]
[399428541,1766344242304,-588.84657337,0.00016438,2]
[399428542,1766344242314,-588.84657337,0.00016438,2]
[399428543,1766344242324,-588.84657337,0.00016438,2]
[399428544,1766344242333,-588.84657337,0.00016438,2]
[399428545,1766344242343,-588.84657337,0.00016438,2]
[399428546,1766344242353,-588.84657337,0.00016438,2]
[399428547,1766344242366,-588.84657337,0.00016438,2]
[399428548,1766344242375,-588.84657337,0.00016438,2]
[399428549,1766344242385,-588.84657337,0.00016438,2]
[399428550,1766344242399,-588.84657337,0.00016438,2]
[399428551,1766344242409,-588.84657337,0.00016438,2]
[399428552,1766344242418,-588.84657337,0.00016438,2]
[399428553,1766344242427,-588.84657337,0.00016438,2]
[399428554,1766344242436,-588.84657337,0.00016438,2]
[399428555,1766344242447,-588.84657337,0.00016438,2]
[399428556,1766344242459,-588.84657337,0.00016438,2]
[399428557,1766344242468,-588.84657337,0.00016438,2]
[399428558,1766344242478,-588.84657337,0.00016438,2]
[399428559,1766344242487,-588.84657337,0.00016438,2]
[399428560,1766344242496,-588.84657337,0.00016438,2]
[399428561,1766344242506,-588.84657337,0.00016438,2]
[399428562,1766344242516,-588.84657337,0.00016438,2]
[399428563,1766344242527,-588.84657337,0.00016438,2]
[399428564,1766344242537,-588.84657337,0.00016438,2]
[399428565,1766344242546,-588.84657337,0.00016438,2]
[399428566,1766344242556,-588.84657337,0.00016438,2]
[399428567,1766344242566,-588.84657337,0.00016438,2]
[399428568,1766344242576,-588.84657337,0.00016438,2]
[399428569,1766344242586,-588.84657337,0.00016438,2]
[399428570,1766344242596,-588.84657337,0.00016438,2]
[399428571,1766344242605,-588.84657337,0.00016438,2]
[399428572,1766344242615,-588.84657337,0.00016438,2]
[399428573,1766344242624,-588.84657337,0.00016438,2]
[399428574,1766344242633,-588.84657337,0.00016438,2]
[399428575,1766344242643,-588.84657337,0.00016438,2]
[399428576,1766344242653,-588.84657337,0.00016438,2]
[399428577,1766344242662,-588.84657337,0.00016438,2]
[399428578,1766344242672,-588.84657337,0.00016438,2]
[399428579,1766344242681,-553.63,0.00016438,2]
[399428580,1766344242691,-151.0,0.00016438,2]
[399428581,1766344242700,-800.0,0.00016438,2]
[399428582,1766344242711,-151.0,0.00016438,2]
[399428583,1766344242720,-151.0,0.00016438,2]
[399428584,1766344242730,-12201.84,0.00016438,2]
[399428585,1766344242740,-1000.0,0.00016455,2]
[399428586,1766344242750,-1000.0,0.00016455,2]
[399428587,1766344242759,-1000.0,0.00016455,2]
[399428588,1766344242769,-1000.0,0.00016455,2]
[399428589,1766344242780,-500.51801303,0.00016473,2]
[399428590,1766344242790,-500.0,0.00016473,2]
[399428591,1766344242800,-500.0,0.00016473,2]
[399428592,1766344242811,-500.0,0.00016473,2]
[399428593,1766344242821,-500.0,0.00016473,2]
[399428594,1766344242830,-570.29356194,0.00016473,2]
[399428595,1766344242839,-500.4654119,0.00016473,2]
[399428596,1766344242848,-500.0,0.00016473,2]
[399428597,1766344242858,-500.0,0.00016473,2]
[399428598,1766344242868,-500.0,0.00016473,2]
[399428599,1766344242878,-500.0,0.00016473,2]
[399428600,1766344242890,-500.0,0.00016473,2]
[399428601,1766344242899,-500.0,0.00016473,2]
[399428602,1766344242908,-500.0,0.00016473,2]
[399428603,1766344242920,-500.0,0.00016473,2]
[399428604,1766344242929,-500.0,0.00016473,2]
[399428605,1766344242939,-500.0,0.00016473,2]
[399428606,1766344242948,-500.0,0.00016473,2]
[399428607,1766344242958,-500.0,0.00016473,2]
[399428608,1766344242968,-500.0,0.00016473,2]
[399428609,1766344242978,-518.86476464,0.00016473,2]
[399428610,1766344242988,-500.0,0.00016473,2]
[399428611,1766344243001,-500.0,0.00016473,2]
[399428612,1766344243011,-500.0,0.00016473,2]
[399428613,1766344243020,-334.60508476,0.00016473,2]
[399428614,1766344243028,-507.35959286,0.00016473,2]
[399428616,1766344243038,-500.0,0.00016473,2]
[399428617,1766344243047,-639.72398952,0.00016473,2]
[399428618,1766344243055,-500.0,0.00016473,2]
[399428619,1766344243064,-500.67170266,0.00016473,2]
[399428620,1766344243074,-156.55034948,0.00016473,2]
[399428621,1766344243084,-160.18477965,0.00016473,2]
[399428622,1766344243093,-160.18740865,0.00016473,2]
[399428623,1766344243102,-500.0,0.00016473,2]
[399428624,1766344243112,-150.17482874,0.00016473,2]
[399428625,1766344243122,-248.8938967,0.00016473,2]
[399428626,1766344243133,-500.0,0.00016473,2]
[399428628,1766344243145,-160.18818998,0.00016473,2]
[399428629,1766344243154,-500.0,0.00016473,2]
[399428630,1766344243163,-500.0,0.00016473,2]
[399428631,1766344243173,-160.18741035,0.00016473,2]
[399428632,1766344243183,-160.18740865,0.00016473,2]
[399428633,1766344243192,-555.97636192,0.00016473,2]
[399428635,1766344243201,-162.38378184,0.00016473,2]
[399428636,1766344243211,-517.55500559,0.00016473,2]
[399428637,1766344243220,-500.0,0.00016473,2]
[399428638,1766344243229,-500.0,0.00016473,2]
[399428639,1766344243238,-500.0,0.00016473,2]
[399428640,1766344243247,-500.0,0.00016473,2]
[399428641,1766344243256,-500.0,0.00016473,2]
[399428642,1766344243266,-500.0,0.00016473,2]
[399428643,1766344243276,-576.10062402,0.00016473,2]
[399428644,1766344243285,-500.0,0.00016473,2]
[399428645,1766344243298,-500.0,0.00016473,2]
[399428646,1766344243307,-500.0,0.00016473,2]
[399428647,1766344243316,-500.0,0.00016473,2]
[399428648,1766344243326,-506.25214638,0.00016473,2]
[399428650,1766344243335,-164.83274193,0.00016473,2]
[399428651,1766344243344,-160.18740865,0.00016473,2]
[399428652,1766344243353,-500.0,0.00016473,2]
[399428653,1766344243363,-500.0,0.00016473,2]
[399428654,1766344243372,-500.52093975,0.00016473,2]
[399428655,1766344243381,-509.1899532,0.00016473,2]
[399428656,1766344243390,-500.0,0.00016473,2]
[399428657,1766344243400,-500.0,0.00016473,2]
[399428658,1766344243409,-500.0,0.00016473,2]
[399428659,1766344243418,-500.0,0.00016473,2]
[399428660,1766344243427,-500.0,0.00016473,2]
[399428661,1766344243437,-207.48820699,0.00016473,2]
[399428662,1766344243446,-530.05316157,0.00016473,2]
[399428663,1766344243457,-500.0,0.00016473,2]
[399428664,1766344243467,-500.0,0.00016473,2]
[399428665,1766344243476,-500.0,0.00016473,2]
[399428666,1766344243486,-500.0,0.00016473,2]
[399428667,1766344243496,-171.4,0.00016498,2]
[399428668,1766344243505,-1000.0,0.00016501,2]
[399428669,1766344243516,-1000.0,0.00016501,2]
[399428670,1766344243525,-1000.0,0.00016501,2]
[399428671,1766344243534,-1000.0,0.00016501,2]
[399428672,1766344243543,-1000.0,0.00016501,2]
[399428673,1766344243552,-1600.0,0.0001653,2]
[399428674,1766344243562,-1000.0,0.000166,2]
[399428675,1766344243580,-1501.25804602,0.0001666,2]
[399428676,1766344243594,-164.5,0.00016712,2]
[399428677,1766344243604,-1000.0,0.00016751,2]
[399428678,1766344243615,-168.0,0.0001677,2]
[399428679,1766344243624,-298.26089446,0.00016799,2]
[399428680,1766344243633,-334.5472959,0.00016799,2]
[399428681,1766344243642,-7000.0,0.0001683,2]
[399428682,1766344243651,-1724.314,0.0001686,2]
[399428683,1766344243661,-1000.0,0.0001686,2]
[399428684,1766344243670,-1000.0,0.0001686,2]
[399428686,1766344243680,-1000.0,0.0001686,2]
[399428687,1766344243689,-1000.0,0.0001686,2]
[399428688,1766344243698,-339.693,0.0001686,2]
[399428689,1766344243708,-200.0,0.00016863,2]
[399428690,1766344243717,-200.0,0.00016864,2]
[399428691,1766344243726,-200.0,0.00016864,2]
[399428693,1766344243735,-1222.0,0.00016891,2]
[399428695,1766344243744,-500.0,0.00016899,2]